bitfinex-derivatives/quotes_BTCF0:USTF0_20250913
["timestamp","ask_amount","ask_price","bid_price","bid_amount"]
[1757778515751,0.19098661,115780.0,115770.0,1.20328]
[1757778516053,0.19198661,115780.0,115770.0,1.19828]
[1757778516355,0.29351598,115780.0,115770.0,1.19828]
[1757778516757,0.29351598,115780.0,115770.0,0.3608]
[1757778516951,0.29351598,115780.0,115770.0,1.19828]
[1757778517755,0.09045724,115780.0,115770.0,1.19828]
[1757778517947,0.29351598,115780.0,115770.0,1.19828]
[1757778518655,0.29351598,115780.0,115770.0,0.3608]
[1757778518850,0.29351598,115780.0,115770.0,1.19828]
[1757778520150,0.29351598,115780.0,115770.0,0.3608]
[1757778521149,0.29351598,115780.0,115770.0,1.19824]
[1757778523657,0.19198661,115780.0,115770.0,1.19824]
[1757778524258,0.19198661,115780.0,115770.0,0.3608]
[1757778524452,0.29351598,115780.0,115770.0,0.83744]
[1757778525162,0.29610598,115780.0,115770.0,0.83744]
[1757778526059,0.01368,115770.0,115760.0,1.1982]
[1757778526356,0.26155007,115770.0,115760.0,1.1982]
[1757778527146,0.26155007,115770.0,115760.0,0.3618]
[1757778527353,0.05849133,115770.0,115760.0,1.19916]
[1757778527552,0.26155007,115770.0,115760.0,1.19916]
[1757778528454,0.26155007,115770.0,115760.0,0.3618]
[1757778528656,0.26155007,115770.0,115760.0,1.19912]
[1757778528960,0.29251598,115770.0,115760.0,1.19912]
[1757778529155,0.3604099,115770.0,115760.0,1.19912]
[1757778529959,0.3614099,115770.0,115760.0,1.19912]
[1757778530365,0.3614099,115770.0,115760.0,0.3618]
[1757778530667,0.3614099,115770.0,115760.0,1.19912]
[1757778531353,0.3614099,115770.0,115760.0,1.19812]
[1757778537470,0.15835116,115770.0,115760.0,1.19812]
[1757778537669,0.3614099,115770.0,115760.0,1.19812]
[1757778538370,0.15835116,115770.0,115760.0,1.19812]
[1757778538571,0.3614099,115770.0,115760.0,1.19812]
[1757778539271,0.15835116,115770.0,115760.0,1.19812]
[1757778539472,0.3614099,115770.0,115760.0,1.19812]
[1757778543374,0.36142932,115770.0,115760.0,1.19784]
[1757778544074,0.01326,115760.0,115750.0,0.3608]
[1757778544280,0.15629062,115760.0,115750.0,1.19776]
[1757778544482,0.17843137,115760.0,115750.0,1.19776]
[1757778544678,0.17843137,115760.0,115750.0,0.3608]
[1757778544879,0.20939728,115760.0,115750.0,1.19776]
[1757778545883,0.10786791,115760.0,115750.0,1.19776]
[1757778546181,0.20939728,115760.0,115750.0,1.19776]
[1757778546573,0.20939728,115760.0,115750.0,1.19876]
[1757778547383,0.20939728,115760.0,115750.0,1.19776]
[1757778548074,0.21039728,115760.0,115750.0,1.19776]
[1757778548377,0.21039728,115760.0,115750.0,1.19764]
[1757778550884,0.21039728,115760.0,115750.0,0.3608]
[1757778551085,0.21039728,115760.0,115750.0,0.8368]
[1757778551686,0.25684614,115760.0,115750.0,0.8368]
[1757778551984,0.21039728,115760.0,115750.0,0.8368]
[1757778554385,0.41365327,115760.0,115750.0,0.8368]
[1757778554781,0.46010213,115760.0,115750.0,0.8368]
[1757778555485,0.35850701,115760.0,115750.0,0.8368]
[1757778556790,0.36109701,115760.0,115750.0,0.8368]
[1757778558691,0.46269213,115760.0,115750.0,0.8368]
[1757778558990,0.36109701,115760.0,115750.0,0.8368]
[1757778559188,0.46269213,115760.0,115750.0,0.8368]
[1757778560490,0.41624327,115760.0,115750.0,0.8368]
[1757778562192,0.11145791,115760.0,115750.0,0.8368]
[1757778562393,0.31464815,115760.0,115750.0,0.8368]
[1757778562890,0.41624327,115760.0,115750.0,0.8368]
[1757778563683,0.31464815,115760.0,115750.0,0.8368]
[1757778566198,0.11245791,115760.0,115750.0,0.8368]
[1757778566398,0.31564815,115760.0,115750.0,0.8368]
[1757778566589,0.31664815,115760.0,115750.0,0.8368]
[1757778567199,0.11345791,115760.0,115750.0,0.8368]
[1757778567490,0.21505303,115760.0,115750.0,1.54919512]
[1757778567688,0.31664815,115760.0,115750.0,1.4476]
[1757778568498,0.21505303,115760.0,115750.0,1.4476]
[1757778568699,0.18408712,115760.0,115750.0,1.4476]
[1757778568894,0.18408712,115760.0,115750.0,1.44696]
[1757778569491,0.18408712,115760.0,115750.0,0.6108]
[1757778569700,0.18408712,115760.0,115750.0,1.44696]
[1757778569701,0.28568224,115760.0,115750.0,1.44696]
[1757778571195,0.28568224,115760.0,115750.0,0.6108]
[1757778571399,0.28568224,115760.0,115750.0,1.44688]
[1757778574003,0.28568224,115760.0,115750.0,0.6108]
[1757778574194,0.28568224,115760.0,115750.0,1.4468]
[1757778574503,0.28568224,115760.0,115750.0,0.6108]
[1757778574704,0.28568224,115760.0,115750.0,1.44676]
[1757778578003,0.28568224,115760.0,115750.0,0.6108]
[1757778578499,0.28568224,115760.0,115750.0,1.4466]
[1757778578694,0.28568224,115760.0,115750.0,1.1966]
[1757778578897,0.31664815,115760.0,115750.0,1.1966]
[1757778580504,0.082492,115760.0,115750.0,1.1966]
[1757778580705,0.28568224,115760.0,115750.0,1.1966]
[1757778582497,0.28568224,115760.0,115750.0,0.3608]
[1757778582708,0.28568224,115760.0,115750.0,1.19652]
[1757778583307,0.28568224,115760.0,115750.0,0.3608]
[1757778583507,0.28568224,115760.0,115750.0,1.19644]
[1757778584106,0.31664815,115760.0,115750.0,1.19644]
[1757778598719,0.11345791,115760.0,115750.0,1.19644]
[1757778598924,0.31664815,115760.0,115750.0,1.19644]
[1757778602029,0.11345791,115760.0,115750.0,1.19644]
[1757778602229,0.31664815,115760.0,115750.0,1.19644]
[1757778602729,0.11345791,115760.0,115750.0,1.19644]
[1757778602940,0.09224791,115760.0,115750.0,1.19644]
[1757778603234,0.19384303,115760.0,115750.0,1.19644]
[1757778603436,0.16287712,115760.0,115750.0,1.19644]
[1757778604133,0.16287712,115760.0,115750.0,0.3608]
[1757778604332,0.16287712,115760.0,115750.0,1.1956]
[1757778604532,0.16287712,115760.0,115750.0,0.46239512]
[1757778604732,0.16287712,115760.0,115750.0,1.29715512]
[1757778605032,0.16287712,115760.0,115750.0,1.19556]
[1757778605234,0.061282,115760.0,115750.0,1.19556]
[1757778605529,0.16287712,115760.0,115750.0,0.3608]
[1757778605727,0.16287712,115760.0,115750.0,1.19556]
[1757778606130,0.16287712,115760.0,115750.0,1.19552]
[1757778606622,0.26447224,115760.0,115750.0,1.19548]
[1757778607437,0.061282,115760.0,115750.0,1.19548]
[1757778607638,0.26447224,115760.0,115750.0,1.19548]
[1757778608138,0.061282,115760.0,115750.0,1.19548]
[1757778608336,0.061282,115760.0,115750.0,1.29707512]
[1757778608541,0.16287712,115760.0,115750.0,1.29707512]
[1757778608838,0.26447224,115760.0,115750.0,1.19548]
[1757778609340,0.061282,115760.0,115750.0,1.19548]
[1757778609738,0.26447224,115760.0,115750.0,1.19548]
[1757778609939,0.26447224,115760.0,115750.0,0.3608]
[1757778610140,0.26447224,115760.0,115750.0,1.1954]
[1757778610335,0.26447224,115760.0,115750.0,0.3608]
[1757778610642,0.28733224,115760.0,115750.0,1.19532]
[1757778610938,0.26447224,115760.0,115750.0,1.19532]
[1757778612039,0.061282,115760.0,115750.0,1.19532]
[1757778612340,0.26447224,115760.0,115750.0,1.19532]
[1757778612640,0.26447224,115760.0,115750.0,1.29691512]
[1757778613737,0.16287712,115760.0,115750.0,1.29691512]
[1757778614236,0.061282,115760.0,115750.0,1.29691512]
[1757778614436,0.061282,115760.0,115750.0,1.19532]
[1757778614437,0.16284012,115760.0,115750.0,1.19532]
[1757778615438,0.061282,115760.0,115750.0,0.71235812]
[1757778615631,0.061282,115760.0,115750.0,1.54671812]
[1757778616237,0.061282,115760.0,115750.0,1.44516]
[1757778616641,0.060282,115760.0,115750.0,1.44516]
[1757778616837,0.061282,115760.0,115750.0,1.54671812]
[1757778617344,0.060282,115760.0,115750.0,1.54671812]
[1757778617844,0.059282,115760.0,115750.0,1.54671812]
[1757778618941,0.058282,115760.0,115750.0,1.54671812]
[1757778619836,0.058282,115760.0,115750.0,0.6108]
[1757778620035,0.058282,115760.0,115750.0,0.71235812]
[1757778620235,0.058282,115760.0,115750.0,1.54647812]
[1757778622145,0.058282,115760.0,115750.0,1.44492]
[1757778622442,0.058282,115760.0,115750.0,1.54647812]
[1757778622640,0.03614125,115760.0,115750.0,1.54747812]
[1757778624343,0.03614125,115760.0,115750.0,1.54847812]
[1757778624943,0.03614125,115760.0,115750.0,1.29847812]
[1757778628746,0.03614125,115760.0,115750.0,1.91847812]
[1757778629048,0.03614125,115760.0,115750.0,1.81692]
[1757778629444,0.03614125,115760.0,115750.0,1.91847812]
[1757778629949,0.03614125,115760.0,115750.0,1.81652]
[1757778630148,0.03614125,115760.0,115750.0,1.91807812]
[1757778632747,0.03614125,115760.0,115750.0,0.9828]
[1757778632945,0.03614125,115760.0,115750.0,1.08435812]
[1757778633144,0.03614125,115760.0,115750.0,1.91795812]
[1757778636152,0.03614125,115760.0,115750.0,1.8164]
[1757778636349,0.03614125,115760.0,115750.0,1.91795812]
[1757778645058,0.01585,115760.0,115750.0,0.9828]
[1757778645263,0.01585,115760.0,115750.0,1.19588]
[1757778646152,0.01585,115760.0,115750.0,1.29743812]
[1757778646352,0.01326,115760.0,115750.0,1.29743812]
[1757778646562,0.01326,115760.0,115750.0,1.19588]
[1757778647358,0.01326,115760.0,115750.0,1.29743812]
[1757778648758,0.01585,115760.0,115750.0,1.29743812]
[1757778649162,0.01585,115760.0,115750.0,0.46435812]
[1757778649363,0.01585,115760.0,115750.0,1.29727812]
[1757778649760,0.01585,115760.0,115750.0,0.46435812]
[1757778649961,0.01585,115760.0,115750.0,0.3628]
[1757778650261,0.13978812,115760.0,115750.0,1.19564]
[1757778650464,0.13978812,115760.0,115750.0,0.3628]
[1757778650661,0.13978812,115760.0,115750.0,1.19564]
[1757778650965,0.38978812,115760.0,115750.0,0.3628]
[1757778651264,0.41235618,115760.0,115750.0,1.1956]
[1757778654068,0.41235618,115760.0,115750.0,0.3628]
[1757778654265,0.41235618,115760.0,115750.0,1.19552]
[1757778655065,0.31079806,115760.0,115750.0,1.19552]
[1757778655266,0.41235618,115760.0,115750.0,1.19552]
[1757778655461,0.41235618,115760.0,115750.0,0.3628]
[1757778655662,0.41235618,115760.0,115750.0,1.19548]
[1757778656159,0.06079806,115760.0,115750.0,1.19548]
[1757778656764,0.03841806,115760.0,115750.0,1.19548]
[1757778658167,0.03841806,115760.0,115750.0,1.21275097]
[1757778661963,0.03841806,115760.0,115750.0,1.29703812]
[1757778662163,0.01585,115760.0,115750.0,1.54703812]
[1757778664668,0.01585,115760.0,115750.0,1.29703812]
[1757778669272,0.01585,115760.0,115750.0,1.19548]
[1757778669472,0.01585,115760.0,115750.0,1.29655812]
[1757778670873,0.01585,115760.0,115750.0,1.38290132]
[1757778672973,0.01585,115760.0,115750.0,1.29647812]
[1757778673774,0.01585,115760.0,115750.0,0.46435812]
[1757778674073,0.01585,115760.0,115750.0,1.29635812]
[1757778674375,0.01585,115760.0,115750.0,1.29632248]
[1757778675771,0.01585,115760.0,115750.0,1.48418816]
[1757778676075,0.01585,115760.0,115750.0,1.55164501]
[1757778676276,0.01585,115760.0,115750.0,1.45012253]
[1757778676572,0.01585,115760.0,115750.0,1.55164501]
[1757778676777,0.00259,115760.0,115750.0,2.05164501]
[1757778676977,0.00259,115760.0,115750.0,1.80164501]
[1757778677374,0.00259,115760.0,115750.0,1.90164501]
[1757778678377,0.01368,115770.0,115750.0,1.90164501]
[1757778678578,0.01368,115770.0,115760.0,0.56384496]
[1757778681479,0.01368,115770.0,115760.0,0.56484496]
[1757778682180,0.01368,115770.0,115760.0,0.56584496]
[1757778683075,0.01368,115770.0,115760.0,0.65218066]
[1757778691882,0.01368,115780.0,115760.0,0.90218066]
[1757778692088,0.01368,115780.0,115770.0,1.29352248]
[1757778693089,0.01368,115780.0,115770.0,1.48137316]
[1757778693392,0.01368,115780.0,115770.0,0.56384496]
[1757778693591,0.01368,115780.0,115770.0,1.39496496]
[1757778693984,0.01368,115780.0,115770.0,1.29344248]
[1757778694498,0.01368,115780.0,115770.0,1.30222979]
[1757778696494,0.01368,115780.0,115770.0,1.20058731]
[1757778696699,0.01368,115780.0,115770.0,1.30210979]
[1757778699104,0.01368,115780.0,115770.0,1.40363227]
[1757778699305,0.01368,115780.0,115770.0,1.20058731]
[1757778699505,0.01368,115780.0,115770.0,1.40363227]
[1757778702507,0.01368,115780.0,115770.0,1.48996057]
[1757778702708,0.01368,115780.0,115770.0,2.17996057]
[1757778703809,0.01368,115780.0,115770.0,1.97691561]
[1757778704107,0.01368,115780.0,115770.0,2.17996057]
[1757778706399,0.01368,115790.0,115770.0,2.42996057]
[1757778706604,0.01368,115790.0,115780.0,0.56384496]
[1757778707512,0.01468,115790.0,115780.0,0.56384496]
[1757778708213,0.01568,115790.0,115780.0,0.56384496]
[1757778711906,0.01568,115790.0,115780.0,1.39404496]
[1757778712104,0.03696,115790.0,115780.0,0.3608]
[1757778712303,0.24000496,115790.0,115780.0,0.3608]
[1757778712510,0.28696,115790.0,115780.0,0.3608]
[1757778712812,0.41127147,115790.0,115780.0,0.3608]
[1757778713009,0.41127147,115790.0,115780.0,1.19092]
[1757778720615,0.30974899,115790.0,115780.0,1.19092]
[1757778721006,0.41127147,115790.0,115780.0,1.29244248]
[1757778722313,0.41127147,115790.0,115780.0,1.19092]
[1757778722509,0.41127147,115790.0,115780.0,1.29244248]
[1757778722917,0.30974899,115790.0,115780.0,1.29244248]
[1757778723117,0.41127147,115790.0,115780.0,1.29244248]
[1757778728422,0.30974899,115790.0,115780.0,1.29244248]
[1757778728623,0.41127147,115790.0,115780.0,1.29244248]
[1757778729823,0.41127147,115790.0,115780.0,0.3608]
[1757778730024,0.41127147,115790.0,115780.0,1.29204248]
[1757778730414,0.41127147,115790.0,115780.0,0.46232248]
[1757778730621,0.51279395,115790.0,115780.0,0.3608]
[1757778730820,0.30974899,115790.0,115780.0,0.3608]
[1757778731123,0.51279395,115790.0,115780.0,1.19048]
[1757778733220,0.41127147,115790.0,115780.0,1.19048]
[1757778734629,0.41126682,115790.0,115780.0,1.19048]
[1757778737531,0.30974899,115790.0,115780.0,1.19048]
[1757778737728,0.41126682,115790.0,115780.0,1.19048]
[1757778742131,0.30974899,115790.0,115780.0,1.19048]
[1757778742333,0.41126682,115790.0,115780.0,1.19048]
[1757778748930,0.05974899,115790.0,115780.0,1.19048]
[1757778750537,0.16126682,115790.0,115780.0,1.19048]
[1757778755743,0.16126682,115790.0,115780.0,0.3608]
[1757778756040,0.16126682,115790.0,115780.0,1.18976]
[1757778757737,0.16385682,115790.0,115780.0,1.18976]
[1757778760744,0.16385682,115790.0,115780.0,1.18968]
[1757778762044,0.16385682,115790.0,115780.0,0.3608]
[1757778762246,0.16385682,115790.0,115780.0,1.1896]
[1757778783456,0.16385682,115790.0,115780.0,1.54111783]
[1757778783457,0.06233899,115790.0,115780.0,1.54111783]
[1757778783660,0.04105899,115790.0,115780.0,1.54111783]
[1757778786762,0.01827,115790.0,115780.0,1.54111783]
[1757778786961,0.04123276,115790.0,115780.0,1.54111783]
[1757778790161,0.01827,115790.0,115780.0,1.54111783]
[1757778791568,0.01827,115790.0,115780.0,1.54007783]
[1757778792062,0.01827,115790.0,115780.0,1.53999783]
[1757778795869,0.01827,115790.0,115780.0,0.71231783]
[1757778796274,0.01827,115790.0,115780.0,1.43832]
[1757778796470,0.01827,115790.0,115780.0,1.64127794]
[1757778799471,0.01827,115790.0,115780.0,1.53979897]
[1757778799668,0.01827,115790.0,115780.0,1.64127794]
[1757778803080,0.14089897,115790.0,115780.0,1.43804]
[1757778803282,0.14089897,115790.0,115780.0,1.53951897]
[1757778803283,0.1608957,115790.0,115780.0,1.53951897]
[1757778805282,0.05941673,115790.0,115780.0,1.53951897]
[1757778805484,0.1608957,115790.0,115780.0,1.64099794]
[1757778805784,0.1608957,115790.0,115780.0,1.53951897]
[1757778805981,0.1608957,115790.0,115780.0,1.64099794]
[1757778806183,0.03826673,115790.0,115780.0,1.64099794]
[1757778806383,0.03826673,115790.0,115780.0,1.43804]
[1757778806683,0.03826673,115790.0,115780.0,1.53951897]
[1757778807377,0.03826673,115790.0,115780.0,1.43804]
[1757778807880,0.1397457,115790.0,115780.0,1.53951897]
[1757778808084,0.1625857,115790.0,115780.0,1.43784]
[1757778808282,0.1625857,115790.0,115780.0,1.53931897]
[1757778808884,0.1625857,115790.0,115780.0,0.71227897]
[1757778809185,0.1625857,115790.0,115780.0,1.53927897]
[1757778810184,0.1625857,115790.0,115780.0,1.53923897]
[1757778810882,0.1625857,115790.0,115780.0,0.71227897]
[1757778811085,0.1625857,115790.0,115780.0,1.53915897]
[1757778811587,0.1625857,115790.0,115780.0,1.43768]
[1757778811786,0.1625857,115790.0,115780.0,0.71227897]
[1757778811988,0.1625857,115790.0,115780.0,1.53911897]
[1757778813092,0.1625857,115790.0,115780.0,0.71227897]
[1757778813282,0.1625857,115790.0,115780.0,1.53911897]
[1757778814787,0.1625857,115790.0,115780.0,0.6108]
[1757778814988,0.1625857,115790.0,115780.0,1.28903897]
[1757778815188,0.18541479,115790.0,115780.0,1.18756]
[1757778815388,0.18541479,115790.0,115780.0,1.28903897]
[1757778816194,0.18541479,115790.0,115780.0,0.3608]
[1757778816386,0.18541479,115790.0,115780.0,1.18752]
[1757778817489,0.18541479,115790.0,115780.0,1.28899897]
[1757778817698,0.18541479,115790.0,115780.0,1.18752]
[1757778818594,0.08393582,115790.0,115780.0,1.28899897]
[1757778818796,0.06109582,115790.0,115780.0,1.39047794]
[1757778819185,0.06109175,115790.0,115780.0,1.39047794]
[1757778819894,0.03826673,115790.0,115780.0,1.39047794]
[1757778823895,0.03826673,115790.0,115780.0,1.28899897]
[1757778824590,0.03826673,115790.0,115780.0,1.39047794]
[1757778827003,0.03826673,115790.0,115780.0,1.28899897]
[1757778827405,0.06103155,115790.0,115780.0,0.46227897]
[1757778827592,0.06103155,115790.0,115780.0,1.28855897]
[1757778827788,0.06103155,115790.0,115780.0,0.46227897]
[1757778827990,0.08387155,115790.0,115780.0,0.46227897]
[1757778828505,0.08387155,115790.0,115780.0,1.187]
[1757778828697,0.18535052,115790.0,115780.0,1.28847897]
[1757778830704,0.18535052,115790.0,115780.0,1.64927897]
[1757778833204,0.18535324,115790.0,115780.0,1.64927897]
[1757778839004,0.18535324,115790.0,115780.0,0.82307897]
[1757778839407,0.18535324,115790.0,115780.0,1.64883897]
[1757778840216,0.18535324,115790.0,115780.0,0.82307897]
[1757778840409,0.18535324,115790.0,115780.0,1.64883897]
[1757778842008,0.18535324,115790.0,115780.0,1.54736]
[1757778842212,0.18535324,115790.0,115780.0,1.64883897]
[1757778842412,0.18535324,115790.0,115780.0,1.54736]
[1757778842611,0.18535324,115790.0,115780.0,1.64883897]
[1757778843514,0.18535324,115790.0,115780.0,1.54736]
[1757778843708,0.18535324,115790.0,115780.0,1.64883897]
[1757778847611,0.18535324,115790.0,115780.0,1.54696]
[1757778847812,0.18535324,115790.0,115780.0,1.64843897]
[1757778848609,0.08387427,115790.0,115780.0,1.64843897]
[1757778848914,0.18535324,115790.0,115780.0,1.64843897]
[1757778854715,0.18535324,115790.0,115780.0,0.82307897]
[1757778854916,0.18535324,115790.0,115780.0,0.7216]
[1757778855120,0.18535324,115790.0,115780.0,1.64811897]
[1757778856714,0.18538354,115790.0,115780.0,1.64811897]
[1757778858219,0.18538354,115790.0,115780.0,0.82307897]
[1757778858414,0.18538354,115790.0,115780.0,1.54644]
[1757778858415,0.08390457,115790.0,115780.0,1.54644]
[1757778859211,0.08390457,115790.0,115780.0,1.5464]
[1757778865418,0.08390457,115790.0,115780.0,1.64789939]
[1757778867121,0.08390457,115790.0,115780.0,1.5464]
[1757778868319,0.08390457,115790.0,115780.0,0.7216]
[1757778868517,0.08390457,115790.0,115780.0,1.64741939]
[1757778869321,0.08390457,115790.0,115780.0,1.54592]
[1757778871222,0.08390457,115790.0,115780.0,1.64741939]
[1757778871720,0.08390457,115790.0,115780.0,1.54592]
[1757778877326,0.08390457,115790.0,115780.0,1.64741939]
[1757778879425,0.06106457,115790.0,115780.0,1.64741939]
[1757778894147,0.08289457,115790.0,115780.0,1.64617939]
[1757778900155,0.08289457,115790.0,115780.0,1.54468]
[1757778900449,0.08289457,115790.0,115780.0,1.64617939]
[1757778901152,0.08289457,115790.0,115780.0,1.54468]
[1757778901352,0.08289457,115790.0,115780.0,1.64617939]
[1757778902255,0.08289457,115790.0,115780.0,1.54468]
[1757778902446,0.08289457,115790.0,115780.0,1.64617939]
[1757778902953,0.08289457,115790.0,115780.0,1.54468]
[1757778903153,0.08289457,115790.0,115780.0,1.64617939]
[1757778905051,0.08289457,115790.0,115780.0,1.64561939]
[1757778909759,0.06289784,115790.0,115780.0,1.64561939]
[1757778913565,0.06289784,115790.0,115780.0,0.82309939]
[1757778913763,0.06289784,115790.0,115780.0,1.64521939]
[1757778914063,0.06289784,115790.0,115780.0,1.64509939]
[1757778920373,0.16439482,115790.0,115780.0,1.64509698]
[1757778922677,0.16439482,115790.0,115780.0,1.5436]
[1757778922879,0.16439482,115790.0,115780.0,1.64509698]
[1757778925071,0.16439482,115790.0,115780.0,0.82309698]
[1757778925280,0.16439482,115790.0,115780.0,1.64449698]
[1757778929474,0.06289784,115790.0,115780.0,1.64449698]
[1757778929679,0.16439482,115790.0,115780.0,1.64449698]
[1757778935687,0.16439482,115790.0,115780.0,0.82309698]
[1757778935983,0.16439482,115790.0,115780.0,1.64381698]
[1757778936184,0.16445387,115790.0,115780.0,0.82309698]
[1757778936384,0.16445387,115790.0,115780.0,1.64377698]
[1757778937688,0.16445387,115790.0,115780.0,1.54228]
[1757778938085,0.16445387,115790.0,115780.0,1.64377698]
[1757778941995,0.06295689,115790.0,115780.0,1.64377698]
[1757778942188,0.16445387,115790.0,115780.0,1.64377698]
[1757778943593,0.16445387,115790.0,115780.0,1.54228]
[1757778943793,0.16445387,115790.0,115780.0,1.64377698]
[1757778944096,0.06295689,115790.0,115780.0,1.64377698]
[1757778944294,0.16445387,115790.0,115780.0,1.64377698]
[1757778945195,0.06295689,115790.0,115780.0,1.64377698]
[1757778945389,0.06295689,115790.0,115780.0,0.7216]
[1757778945594,0.16445387,115790.0,115780.0,1.64321698]
[1757778947797,0.06295689,115790.0,115780.0,1.64321698]
[1757778948304,0.16445387,115790.0,115780.0,1.74471396]
[1757778948703,0.16445387,115790.0,115780.0,1.54172]
[1757778949001,0.16445387,115790.0,115780.0,1.74471396]
[1757778949190,0.06295689,115790.0,115780.0,1.74471396]
[1757778949394,0.04112689,115790.0,115780.0,1.74471396]
[1757778951294,0.04112689,115790.0,115780.0,1.74461396]
[1757778952300,0.04112689,115790.0,115780.0,1.74451396]
[1757778956203,0.04112689,115790.0,115780.0,0.7214]
[1757778956400,0.04112689,115790.0,115780.0,1.74367396]
[1757778961211,0.04112689,115790.0,115780.0,1.54068]
[1757778961508,0.04112689,115790.0,115780.0,1.74367396]
[1757778969112,0.06288689,115790.0,115780.0,0.7214]
[1757778969411,0.06288689,115790.0,115780.0,0.92439396]
[1757778969611,0.06288689,115790.0,115780.0,1.74275396]
[1757778970514,0.06290162,115790.0,115780.0,1.74275396]
[1757778973015,0.04114162,115790.0,115780.0,1.74275396]
[1757778973412,0.04114162,115790.0,115780.0,1.53976]
[1757778973614,0.04114162,115790.0,115780.0,1.74275396]
[1757778982522,0.04114162,115790.0,115780.0,1.64124239]
[1757779005735,0.06218162,115790.0,115780.0,1.53708]
[1757779005929,0.16366401,115790.0,115780.0,1.53728]
[1757779006130,0.16366401,115790.0,115780.0,0.81568]
[1757779006331,0.16366401,115790.0,115780.0,0.7216]
[1757779006633,0.16366401,115790.0,115780.0,1.53728]
[1757779007035,0.06218162,115790.0,115780.0,1.53728]
[1757779007335,0.16366401,115790.0,115780.0,1.53728]
[1757779010739,0.06218162,115790.0,115780.0,1.53728]
[1757779012241,0.41366401,115790.0,115780.0,0.7216]
[1757779012845,0.41366401,115790.0,115780.0,1.53704]
[1757779014541,0.413595,115790.0,115780.0,1.53704]
[1757779027352,0.31211261,115790.0,115780.0,1.53704]
[1757779027553,0.06211261,115790.0,115780.0,1.63852239]
[1757779028248,0.04107261,115790.0,115780.0,1.63852239]
[1757779031759,0.06381261,115790.0,115780.0,0.82308239]
[1757779032051,0.06381261,115790.0,115780.0,1.63792239]
[1757779032359,0.06381261,115790.0,115780.0,0.82308239]
[1757779032554,0.06381261,115790.0,115780.0,1.63792239]
[1757779033959,0.04101,115790.0,115780.0,1.63792239]
[1757779034163,0.06425896,115790.0,115780.0,1.63792239]
[1757779035958,0.06425896,115790.0,115780.0,0.82308239]
[1757779036263,0.06425896,115790.0,115780.0,1.63780239]
[1757779044466,0.16575749,115790.0,115780.0,1.63781853]
[1757779044858,0.06425896,115790.0,115780.0,1.63781853]
[1757779045060,0.16575749,115790.0,115780.0,1.63781853]
[1757779045766,0.16575749,115790.0,115780.0,1.63745853]
[1757779045970,0.16575749,115790.0,115780.0,0.7216]
[1757779046164,0.16575749,115790.0,115780.0,1.63745853]
[1757779047070,0.06425896,115790.0,115780.0,1.63745853]
[1757779047370,0.16575749,115790.0,115780.0,1.63745853]
[1757779048472,0.06425896,115790.0,115780.0,1.63745853]
[1757779048667,0.16575749,115790.0,115780.0,1.63745853]
[1757779049775,0.06425896,115790.0,115780.0,1.63745853]
[1757779049965,0.16575749,115790.0,115780.0,1.63745853]
[1757779052072,0.16575749,115790.0,115780.0,1.73895706]
[1757779052265,0.06425896,115790.0,115780.0,1.73895706]
[1757779052467,0.06425896,115790.0,115780.0,1.63745853]
[1757779052766,0.16575749,115790.0,115780.0,1.63745853]
[1757779053865,0.06425896,115790.0,115780.0,1.63745853]
[1757779054765,0.04151896,115790.0,115780.0,1.98895706]
[1757779057071,0.04051896,115790.0,115780.0,1.98995706]
[1757779057271,0.03951896,115790.0,115780.0,1.99095706]
[1757779059376,0.03972038,115790.0,115780.0,1.99095706]
[1757779059586,0.03972038,115790.0,115780.0,1.63796]
[1757779059874,0.03972038,115790.0,115780.0,1.84095706]
[1757779062973,0.03972038,115790.0,115780.0,2.27877939]
[1757779063179,0.01627,115790.0,115780.0,2.27877939]
[1757779064181,0.01627,115790.0,115780.0,2.83877939]
[1757779067783,1e-08,115790.0,115780.0,2.83877939]
[1757779068081,0.01395,115800.0,115790.0,0.1863164]
[1757779068281,0.01395,115800.0,115790.0,1.30011346]
[1757779070285,0.01383,115810.0,115800.0,0.0863089]
[1757779070582,0.01383,115810.0,115800.0,2.18342596]
[1757779071183,0.01383,115810.0,115800.0,2.28492449]
[1757779071784,0.01483,115810.0,115800.0,2.28492449]
[1757779072078,0.01583,115810.0,115800.0,2.28492449]
[1757779072482,0.01583,115810.0,115800.0,1.54150379]
[1757779072678,0.01483,115810.0,115800.0,2.35574379]
[1757779073785,0.01383,115810.0,115800.0,2.35570379]
[1757779074090,0.01383,115810.0,115800.0,2.35870379]
[1757779074587,0.01383,115810.0,115800.0,2.35862379]
[1757779074782,0.01383,115810.0,115800.0,2.35858379]
[1757779074985,0.01383,115810.0,115800.0,1.0556993]
[1757779075287,0.01383,115810.0,115800.0,2.07177636]
[1757779075880,0.01383,115810.0,115800.0,1.70177636]
[1757779077488,0.01383,115810.0,115800.0,1.71052525]
[1757779078387,0.01383,115810.0,115800.0,1.71040525]
[1757779080187,0.01383,115810.0,115800.0,2.55544525]
[1757779080386,0.01383,115810.0,115800.0,3.36836525]
[1757779082185,0.01383,115810.0,115800.0,3.36828525]
[1757779084794,0.01383,115820.0,115800.0,3.97609218]
[1757779084994,0.01383,115820.0,115810.0,0.56379706]
[1757779086590,0.01383,115820.0,115810.0,0.3608]
[1757779086790,0.01383,115820.0,115810.0,1.37643706]
[1757779088498,0.01383,115820.0,115810.0,1.37743706]
[1757779089090,0.03494,115820.0,115810.0,1.27785853]
[1757779089293,0.03494,115820.0,115810.0,1.37935706]
[1757779089998,0.0581574,115820.0,115810.0,1.37935706]
[1757779090201,0.0581574,115820.0,115810.0,0.56679706]
[1757779090392,0.0581574,115820.0,115810.0,1.37931706]
[1757779090588,0.0581574,115820.0,115810.0,0.56679706]
[1757779090899,0.0581574,115820.0,115810.0,0.46529853]
[1757779091094,0.0581574,115820.0,115810.0,1.27777853]
[1757779094198,0.0581574,115820.0,115810.0,1.37927706]
[1757779094998,0.0581574,115820.0,115810.0,1.37919706]
[1757779099205,0.0581574,115820.0,115810.0,0.56679706]
[1757779099401,0.15965593,115820.0,115810.0,0.46529853]
[1757779099596,0.0581574,115820.0,115810.0,1.27745853]
[1757779104509,0.0581574,115820.0,115810.0,1.27739681]
[1757779104814,0.0581574,115820.0,115810.0,1.17596]
[1757779105113,0.0581574,115820.0,115810.0,1.27739681]
[1757779106608,0.0581574,115820.0,115810.0,1.27719681]
[1757779108616,0.0581574,115820.0,115810.0,1.27711681]
[1757779117822,0.0581574,115820.0,115810.0,0.46523681]
[1757779118026,0.0581574,115820.0,115810.0,1.27687681]
[1757779121224,0.0581574,115820.0,115810.0,0.46523681]
[1757779121412,0.0581574,115820.0,115810.0,1.27671681]